[Event "*** Titled Tuesday Blitz"]
[Site "Chess.com"]
[Date "2019.03.05"]
[Round "1"]
[White "PrinceCharming92"]
[Black "hurricane7791"]
[Result "1-0"]
[WhiteElo "2388"]
[BlackElo "2708"]
[TimeControl "180+2"]
[EndTime "13:10:16 PST"]
[Termination "PrinceCharming92 won by resignation"]

1. e4 {[%clk 0:03:01.9]} 1... c5 {[%clk 0:02:59.2]} 2. Nc3 {[%clk 0:03:02.6]}
2... a6 {[%clk 0:02:59.2]} 3. f4 {[%clk 0:03:02.8]} 3... b5 {[%clk 0:03:00.4]}
4. d3 {[%clk 0:03:03.6]} 4... Bb7 {[%clk 0:03:01.7]} 5. Nf3 {[%clk 0:03:04.6]}
5... e6 {[%clk 0:03:03.1]} 6. g3 {[%clk 0:03:04.5]} 6... d5 {[%clk 0:03:04.2]}
7. e5 {[%clk 0:03:00.2]} 7... h5 {[%clk 0:03:04.8]} 8. Bg2 {[%clk 0:03:01]} 8...
Nh6 {[%clk 0:03:06.3]} 9. O-O {[%clk 0:03:01.6]} 9... Nc6 {[%clk 0:03:07.5]} 10.
h3 {[%clk 0:03:00.8]} 10... Nf5 {[%clk 0:03:07.9]} 11. Ne2 {[%clk 0:03:01.5]}
11... Qb6 {[%clk 0:03:07.6]} 12. c3 {[%clk 0:03:02.2]} 12... d4 {[%clk
0:03:08.7]} 13. cxd4 {[%clk 0:03:02.1]} 13... cxd4 {[%clk 0:03:10.6]} 14. Bd2
{[%clk 0:03:02.1]} 14... Be7 {[%clk 0:03:10.3]} 15. Rc1 {[%clk 0:03:02.6]} 15...
Rd8 {[%clk 0:03:11.7]} 16. Qe1 {[%clk 0:03:03.3]} 16... Ne3 {[%clk 0:03:06.7]}
17. Rf2 {[%clk 0:03:02]} 17... Nxg2 {[%clk 0:03:06.9]} 18. Kxg2 {[%clk
0:03:00.4]} 18... a5 {[%clk 0:03:02.3]} 19. a3 {[%clk 0:02:41.2]} 19... O-O
{[%clk 0:02:51.6]} 20. g4 {[%clk 0:02:36.5]} 20... h4 {[%clk 0:02:48.8]} 21. Kh2
{[%clk 0:02:26.4]} 21... b4 {[%clk 0:02:47.4]} 22. a4 {[%clk 0:02:25.1]} 22...
Ba6 {[%clk 0:02:47.3]} 23. Rg2 {[%clk 0:02:11.9]} 23... Bxd3 {[%clk 0:02:38.6]}
24. Nxh4 {[%clk 0:02:13.1]} 24... Rc8 {[%clk 0:02:25.5]} 25. Nf3 {[%clk
0:02:08.9]} 25... Rfd8 {[%clk 0:02:20.8]} 26. Ng3 {[%clk 0:02:08.9]} 26... Ba6
{[%clk 0:02:13.2]} 27. f5 {[%clk 0:02:00.2]} 27... Bf8 {[%clk 0:02:09.6]} 28.
fxe6 {[%clk 0:01:56.3]} 28... fxe6 {[%clk 0:02:08.4]} 29. Ng5 {[%clk 0:01:57.3]}
29... Bd3 {[%clk 0:02:06.2]} 30. Nxe6 {[%clk 0:01:54.7]} 30... Re8 {[%clk
0:02:05.6]} 31. Nxf8 {[%clk 0:01:53.3]} 31... Rxf8 {[%clk 0:02:06.8]} 32. e6
{[%clk 0:01:37.8]} 32... Rce8 {[%clk 0:02:07.1]} 33. Bg5 {[%clk 0:01:31.1]}
33... Ne7 {[%clk 0:01:52.1]} 34. Qd2 {[%clk 0:01:09.8]} 34... Bg6 {[%clk
0:01:33.7]} 35. Re1 {[%clk 0:01:09.3]} 35... Nd5 {[%clk 0:01:32.4]} 36. Rge2
{[%clk 0:01:01.2]} 36... Rf3 {[%clk 0:01:25.1]} 37. Kg2 {[%clk 0:00:47.3]} 37...
Qc6 {[%clk 0:01:01.7]} 38. Ne4 {[%clk 0:00:32]} 38... Rff8 {[%clk 0:00:48.1]}
39. Qxd4 {[%clk 0:00:30.7]} 39... Rxe6 {[%clk 0:00:48.8]} 40. Kh2 {[%clk
0:00:22.1]} 40... Qc7+ {[%clk 0:00:39.7]} 41. Ng3 {[%clk 0:00:23.3]} 41... Rxe2+
{[%clk 0:00:33.7]} 42. Rxe2 {[%clk 0:00:22.6]} 42... Nb6 {[%clk 0:00:33.8]} 43.
Qe5 {[%clk 0:00:21.7]} 43... Qxe5 {[%clk 0:00:30.8]} 44. Rxe5 {[%clk 0:00:23.6]}
44... Rf2+ {[%clk 0:00:32.5]} 45. Kg1 {[%clk 0:00:24.7]} 45... Rxb2 {[%clk
0:00:33.7]} 46. Rxa5 {[%clk 0:00:26]} 46... Nc4 {[%clk 0:00:30.9]} 47. Rb5
{[%clk 0:00:26.7]} 47... b3 {[%clk 0:00:32.1]} 48. Nf5 {[%clk 0:00:26.5]} 48...
Bxf5 {[%clk 0:00:30.8]} 49. gxf5 {[%clk 0:00:28.4]} 49... Rb1+ {[%clk
0:00:31.7]} 50. Kg2 {[%clk 0:00:29.9]} 50... b2 {[%clk 0:00:33.6]} 51. f6 {[%clk
0:00:31.3]} 51... Ra1 {[%clk 0:00:31.7]} 52. Rb8+ {[%clk 0:00:29.3]} 52... Kf7
{[%clk 0:00:31.2]} 53. Rb7+ {[%clk 0:00:30.7]} 53... Kg6 {[%clk 0:00:29.7]} 54.
f7 {[%clk 0:00:31.9]} 54... Ra2 {[%clk 0:00:15.4]} 55. Kg3 {[%clk 0:00:31.7]}
55... Ra3+ {[%clk 0:00:14.7]} 56. Kh4 {[%clk 0:00:31.6]} 56... Rxa4 {[%clk
0:00:11]} 57. f8=Q {[%clk 0:00:32.6]} 57... Nd6+ {[%clk 0:00:09.6]} 58. Kg3
{[%clk 0:00:26]} 58... Ra3+ {[%clk 0:00:09.4]} 59. Kg2 {[%clk 0:00:24.6]} 59...
Nxb7 {[%clk 0:00:11.3]} 60. Qe8+ {[%clk 0:00:17.9]} 60... Kxg5 {[%clk 0:00:12]}
61. Qe5+ {[%clk 0:00:19.4]} 61... Kg6 {[%clk 0:00:08.8]} 62. Qxb2 {[%clk
0:00:21.3]} 62... Ra7 {[%clk 0:00:09.4]} 63. Qb6+ {[%clk 0:00:22.1]} 1-0

[Event "*** Titled Tuesday Blitz"]
[Site "Chess.com"]
[Date "2019.03.05"]
[Round "1"]
[White "champ2005"]
[Black "MFBerna"]
[Result "1-0"]
[WhiteElo "2801"]
[BlackElo "2411"]
[TimeControl "180+2"]
[EndTime "13:10:37 PST"]
[Termination "champ2005 won by resignation"]

1. e4 {[%clk 0:02:59.7]} 1... c6 {[%clk 0:02:55.2]} 2. d4 {[%clk 0:02:58]} 2...
d5 {[%clk 0:02:56.3]} 3. e5 {[%clk 0:02:59.4]} 3... c5 {[%clk 0:02:56.9]} 4. Nf3
{[%clk 0:02:58]} 4... Nc6 {[%clk 0:02:56]} 5. dxc5 {[%clk 0:02:57.1]} 5... e6
{[%clk 0:02:54.4]} 6. Be3 {[%clk 0:02:49.9]} 6... Nh6 {[%clk 0:02:55.4]} 7. c3
{[%clk 0:02:42.7]} 7... Nf5 {[%clk 0:02:55.8]} 8. Bd4 {[%clk 0:02:40.5]} 8... b6
{[%clk 0:02:56.8]} 9. cxb6 {[%clk 0:02:39.2]} 9... axb6 {[%clk 0:02:58.7]} 10.
Bb5 {[%clk 0:02:31.1]} 10... Bd7 {[%clk 0:02:59.4]} 11. O-O {[%clk 0:02:30.6]}
11... Nxe5 {[%clk 0:02:51.8]} 12. Bxe5 {[%clk 0:01:50.4]} 12... Bxb5 {[%clk
0:02:51.1]} 13. Re1 {[%clk 0:01:51.9]} 13... Be7 {[%clk 0:02:42.3]} 14. Nd4
{[%clk 0:01:50.6]} 14... Nxd4 {[%clk 0:02:40.8]} 15. cxd4 {[%clk 0:01:28]} 15...
O-O {[%clk 0:02:14.1]} 16. Qg4 {[%clk 0:01:28.8]} 16... Bf6 {[%clk 0:02:13.3]}
17. Nc3 {[%clk 0:01:29.1]} 17... Bxe5 {[%clk 0:02:00.5]} 18. Rxe5 {[%clk
0:01:26.7]} 18... Bd7 {[%clk 0:02:00.6]} 19. Rae1 {[%clk 0:01:23.1]} 19... f5
{[%clk 0:01:37.1]} 20. Qf3 {[%clk 0:01:15.7]} 20... Qf6 {[%clk 0:01:25.4]} 21.
a3 {[%clk 0:01:12.8]} 21... Rac8 {[%clk 0:01:16.9]} 22. g3 {[%clk 0:01:03.1]}
22... Rc4 {[%clk 0:01:07]} 23. Nxd5 {[%clk 0:00:58.7]} 23... exd5 {[%clk
0:01:08.9]} 24. Qxd5+ {[%clk 0:00:59]} 24... Qf7 {[%clk 0:01:10.4]} 25. Qd6
{[%clk 0:00:47.4]} 25... Rc6 {[%clk 0:00:55.3]} 26. Qb4 {[%clk 0:00:46.9]} 26...
Re6 {[%clk 0:00:27.5]} 27. Rxe6 {[%clk 0:00:37.3]} 27... Bxe6 {[%clk 0:00:29.4]}
28. Qd6 {[%clk 0:00:38.4]} 28... Bc8 {[%clk 0:00:21.1]} 29. Qf4 {[%clk
0:00:16.4]} 29... Qf6 {[%clk 0:00:19.8]} 30. Rc1 {[%clk 0:00:16.5]} 30... Bb7
{[%clk 0:00:18.6]} 31. Rc7 {[%clk 0:00:16.3]} 31... Ba8 {[%clk 0:00:19.4]} 32.
f3 {[%clk 0:00:13.6]} 32... Rd8 {[%clk 0:00:18.7]} 33. Qe3 {[%clk 0:00:12.5]}
33... Bd5 {[%clk 0:00:15.7]} 34. Kf2 {[%clk 0:00:10.9]} 34... Bf7 {[%clk
0:00:16.5]} 35. h4 {[%clk 0:00:11.7]} 35... h6 {[%clk 0:00:16.1]} 36. Rb7 {[%clk
0:00:10.9]} 36... f4 {[%clk 0:00:09.7]} 37. Qxf4 {[%clk 0:00:11.1]} 37... Qxf4
{[%clk 0:00:10.5]} 38. gxf4 {[%clk 0:00:13]} 38... Rd6 {[%clk 0:00:08.5]} 39.
Ke3 {[%clk 0:00:13.5]} 39... Re6+ {[%clk 0:00:08.7]} 40. Kd3 {[%clk 0:00:14.4]}
40... Rf6 {[%clk 0:00:09.7]} 41. Ke4 {[%clk 0:00:15.2]} 41... Bg6+ {[%clk
0:00:08.8]} 42. Ke5 {[%clk 0:00:15.4]} 42... Rf5+ {[%clk 0:00:10]} 43. Ke6
{[%clk 0:00:16.8]} 43... Rxf4 {[%clk 0:00:10.3]} 44. d5 {[%clk 0:00:18.3]} 44...
Rxf3 {[%clk 0:00:09]} 45. d6 {[%clk 0:00:19.6]} 45... Rd3 {[%clk 0:00:09.2]} 46.
d7 {[%clk 0:00:18.5]} 46... Kh7 {[%clk 0:00:09.7]} 47. Ke7 {[%clk 0:00:17.2]}
47... Re3+ {[%clk 0:00:10.5]} 48. Kd6 {[%clk 0:00:18.4]} 48... Rd3+ {[%clk
0:00:10.3]} 49. Kc7 {[%clk 0:00:19.2]} 49... b5 {[%clk 0:00:07.1]} 50. d8=Q
{[%clk 0:00:19.4]} 50... Rxd8 {[%clk 0:00:09]} 51. Kxd8 {[%clk 0:00:21]} 51...
Bd3 {[%clk 0:00:10.5]} 52. Kc7 {[%clk 0:00:20.9]} 52... Kg6 {[%clk 0:00:11.4]}
53. Kd6 {[%clk 0:00:21.8]} 53... Kf6 {[%clk 0:00:11]} 54. Kc5 {[%clk 0:00:22.8]}
54... g5 {[%clk 0:00:11]} 55. hxg5+ {[%clk 0:00:23.9]} 55... hxg5 {[%clk
0:00:12.7]} 56. Kd4 {[%clk 0:00:25.3]} 56... Bc4 {[%clk 0:00:13.1]} 57. a4
{[%clk 0:00:26]} 57... g4 {[%clk 0:00:11]} 58. a5 {[%clk 0:00:22.2]} 58... g3
{[%clk 0:00:11.8]} 59. Ke3 {[%clk 0:00:23.1]} 59... g2 {[%clk 0:00:06.2]} 60.
Kf2 {[%clk 0:00:23.8]} 60... Ke5 {[%clk 0:00:08.1]} 61. a6 {[%clk 0:00:24.5]}
61... Bd5 {[%clk 0:00:07.8]} 62. Rb8 {[%clk 0:00:25.3]} 62... Kd6 {[%clk
0:00:07]} 63. a7 {[%clk 0:00:26.3]} 63... Kc5 {[%clk 0:00:07.5]} 64. a8=Q {[%clk
0:00:27.5]} 64... Bxa8 {[%clk 0:00:07.9]} 65. Rxa8 {[%clk 0:00:29.4]} 65... Kb4
{[%clk 0:00:09.3]} 66. Rb8 {[%clk 0:00:30.5]} 66... Kc4 {[%clk 0:00:10.2]} 67.
Kxg2 {[%clk 0:00:31.2]} 67... b4 {[%clk 0:00:12.1]} 68. Kf3 {[%clk 0:00:32.1]}
68... Kd3 {[%clk 0:00:12.9]} 69. Rxb4 {[%clk 0:00:32.1]} 1-0

[Event "*** Titled Tuesday Blitz"]
[Site "Chess.com"]
[Date "2019.03.05"]
[Round "1"]
[White "severomorskij"]
[Black "jflup"]
[Result "1-0"]
[WhiteElo "2690"]
[BlackElo "2331"]
[TimeControl "180+2"]
[EndTime "13:10:41 PST"]
[Termination "severomorskij won by resignation"]

1. d4 {[%clk 0:03:01.2]} 1... Nf6 {[%clk 0:02:59.9]} 2. Bg5 {[%clk 0:03:01.2]}
2... Ne4 {[%clk 0:02:59.3]} 3. Bf4 {[%clk 0:03:01.9]} 3... e6 {[%clk 0:03:00.5]}
4. f3 {[%clk 0:02:58.7]} 4... Bd6 {[%clk 0:03:00.5]} 5. Bxd6 {[%clk 0:02:59.4]}
5... Nxd6 {[%clk 0:03:01.3]} 6. e4 {[%clk 0:03:00.3]} 6... f5 {[%clk 0:03:02.3]}
7. e5 {[%clk 0:03:01]} 7... Nf7 {[%clk 0:03:03.5]} 8. f4 {[%clk 0:02:59.4]} 8...
b6 {[%clk 0:02:58.5]} 9. Nf3 {[%clk 0:02:58.8]} 9... Bb7 {[%clk 0:02:58.6]} 10.
Nc3 {[%clk 0:02:57.4]} 10... d6 {[%clk 0:02:50.5]} 11. Bc4 {[%clk 0:02:44.8]}
11... d5 {[%clk 0:02:35.7]} 12. Be2 {[%clk 0:02:32.3]} 12... O-O {[%clk
0:02:26.8]} 13. O-O {[%clk 0:02:30.9]} 13... Ba6 {[%clk 0:02:19.6]} 14. Bxa6
{[%clk 0:02:21.8]} 14... Nxa6 {[%clk 0:02:20]} 15. Qe2 {[%clk 0:02:23.3]} 15...
Nb8 {[%clk 0:02:17.8]} 16. Nd1 {[%clk 0:02:17.8]} 16... Nd7 {[%clk 0:02:02.6]}
17. Ne3 {[%clk 0:02:18.5]} 17... Qe7 {[%clk 0:02:00.1]} 18. c3 {[%clk
0:02:17.7]} 18... c5 {[%clk 0:01:59.6]} 19. Kh1 {[%clk 0:02:18.1]} 19... Rac8
{[%clk 0:01:57.1]} 20. Rg1 {[%clk 0:02:14.4]} 20... Nh6 {[%clk 0:01:58.2]} 21.
h3 {[%clk 0:02:07.5]} 21... cxd4 {[%clk 0:01:49.7]} 22. cxd4 {[%clk 0:02:06.6]}
22... Rc7 {[%clk 0:01:46.5]} 23. Ng5 {[%clk 0:01:50.9]} 23... Nf7 {[%clk
0:01:23.4]} 24. Nf3 {[%clk 0:01:40]} 24... Nh6 {[%clk 0:01:22.9]} 25. a3 {[%clk
0:01:38.4]} 25... Nb8 {[%clk 0:01:06.6]} 26. Rac1 {[%clk 0:01:27.8]} 26... Kh8
{[%clk 0:00:51.2]} 27. Rxc7 {[%clk 0:01:23]} 27... Qxc7 {[%clk 0:00:51.9]} 28.
Ng5 {[%clk 0:01:24]} 28... Qe7 {[%clk 0:00:49.3]} 29. Rc1 {[%clk 0:01:22.2]}
29... Nf7 {[%clk 0:00:46.3]} 30. Nxf7+ {[%clk 0:01:05.6]} 30... Qxf7 {[%clk
0:00:47.5]} 31. Qc2 {[%clk 0:01:06.3]} 31... h6 {[%clk 0:00:38]} 32. Qc7 {[%clk
0:01:03.7]} 32... Na6 {[%clk 0:00:37]} 33. Qxf7 {[%clk 0:01:03.4]} 33... Rxf7
{[%clk 0:00:38]} 34. Rc6 {[%clk 0:00:58.7]} 34... Nc7 {[%clk 0:00:35]} 35. g4
{[%clk 0:00:55.4]} 35... g6 {[%clk 0:00:35.2]} 36. Kg2 {[%clk 0:00:55.3]} 36...
Kg7 {[%clk 0:00:36.1]} 37. Kf3 {[%clk 0:00:54.9]} 37... Kf8 {[%clk 0:00:37.1]}
38. g5 {[%clk 0:00:46.6]} 38... h5 {[%clk 0:00:33.6]} 39. Ng2 {[%clk 0:00:41.6]}
39... Ke8 {[%clk 0:00:24.9]} 40. Nh4 {[%clk 0:00:39.9]} 40... Kd7 {[%clk
0:00:12.5]} 41. Rd6+ {[%clk 0:00:39.9]} 41... Kc8 {[%clk 0:00:11.5]} 42. Ke3
{[%clk 0:00:33.7]} 42... Rg7 {[%clk 0:00:10.3]} 43. a4 {[%clk 0:00:23.4]} 43...
Kb7 {[%clk 0:00:10.8]} 44. b4 {[%clk 0:00:24.4]} 44... a6 {[%clk 0:00:08.3]} 45.
Kd3 {[%clk 0:00:22.9]} 45... Ka7 {[%clk 0:00:07.7]} 46. Rd8 {[%clk 0:00:13.2]}
46... Kb7 {[%clk 0:00:08.8]} 47. Rf8 {[%clk 0:00:13]} 47... Kc6 {[%clk
0:00:06.5]} 48. Rf6 {[%clk 0:00:12.9]} 48... Kd7 {[%clk 0:00:05]} 49. Rxg6
{[%clk 0:00:13.3]} 49... Rxg6 {[%clk 0:00:06]} 50. Nxg6 {[%clk 0:00:14.4]} 50...
b5 {[%clk 0:00:06.6]} 51. a5 {[%clk 0:00:11.9]} 51... Ke8 {[%clk 0:00:07]} 52.
Nh4 {[%clk 0:00:11]} 52... Kf7 {[%clk 0:00:08.2]} 53. Nf3 {[%clk 0:00:12.2]}
53... Kg7 {[%clk 0:00:09.1]} 54. Nd2 {[%clk 0:00:13.4]} 54... Kg6 {[%clk
0:00:08.2]} 55. Nb3 {[%clk 0:00:14.8]} 55... h4 {[%clk 0:00:08]} 56. Nc5 {[%clk
0:00:15.8]} 56... Kh5 {[%clk 0:00:08.6]} 57. Ke3 {[%clk 0:00:17.1]} 57... Kg6
{[%clk 0:00:09.9]} 58. Kf3 {[%clk 0:00:18.2]} 58... Kh5 {[%clk 0:00:11.2]} 59.
Nd7 {[%clk 0:00:19]} 59... Kg6 {[%clk 0:00:12.3]} 60. Ke3 {[%clk 0:00:18.8]}
60... Kh5 {[%clk 0:00:12.5]} 61. Nf8 {[%clk 0:00:19.4]} 61... Ne8 {[%clk
0:00:05.4]} 62. Nxe6 {[%clk 0:00:20.3]} 62... Kg6 {[%clk 0:00:05.9]} 63. Kd3
{[%clk 0:00:17.5]} 63... Kf7 {[%clk 0:00:06.2]} 64. Nc5 {[%clk 0:00:17]} 64...
Nc7 {[%clk 0:00:07.5]} 65. Nb7 {[%clk 0:00:17.9]} 65... Kg6 {[%clk 0:00:08.2]}
66. Nd6 {[%clk 0:00:18.3]} 66... Kg7 {[%clk 0:00:09.1]} 67. Nxf5+ {[%clk
0:00:18.6]} 67... Kg6 {[%clk 0:00:09.7]} 68. Nxh4+ {[%clk 0:00:19.8]} 1-0

[Event "*** Titled Tuesday Blitz"]
[Site "Chess.com"]
[Date "2019.03.05"]
[Round "1"]
[White "murmah2003"]
[Black "bluejay1897"]
[Result "1-0"]
[WhiteElo "2540"]
[BlackElo "2159"]
[TimeControl "180+2"]
[EndTime "13:10:52 PST"]
[Termination "murmah2003 won by resignation"]

1. d4 {[%clk 0:02:53.7]} 1... Nf6 {[%clk 0:02:59.9]} 2. c4 {[%clk 0:02:54.6]}
2... e6 {[%clk 0:02:59.6]} 3. Nf3 {[%clk 0:02:55.5]} 3... b6 {[%clk 0:02:59.6]}
4. g3 {[%clk 0:02:56.2]} 4... Bb7 {[%clk 0:03:00.4]} 5. Bg2 {[%clk 0:02:57.4]}
5... Be7 {[%clk 0:02:59.5]} 6. O-O {[%clk 0:02:58.3]} 6... O-O {[%clk
0:03:00.5]} 7. Re1 {[%clk 0:02:59.2]} 7... d5 {[%clk 0:03:00.1]} 8. Ne5 {[%clk
0:02:57]} 8... Nbd7 {[%clk 0:02:59.1]} 9. Nc3 {[%clk 0:02:57.6]} 9... c5 {[%clk
0:02:22.8]} 10. cxd5 {[%clk 0:02:27.7]} 10... exd5 {[%clk 0:02:15.3]} 11. Bf4
{[%clk 0:02:25.7]} 11... cxd4 {[%clk 0:02:10.1]} 12. Nb5 {[%clk 0:02:17.3]}
12... Bc5 {[%clk 0:01:50.2]} 13. a3 {[%clk 0:01:57.5]} 13... Nxe5 {[%clk
0:01:38.4]} 14. Bxe5 {[%clk 0:01:54.5]} 14... Qe8 {[%clk 0:01:36.4]} 15. Bxf6
{[%clk 0:01:45]} 15... Qxb5 {[%clk 0:01:34.9]} 16. Bxd4 {[%clk 0:01:44.8]} 16...
Rfe8 {[%clk 0:01:22.1]} 17. e3 {[%clk 0:01:43.2]} 17... Bf8 {[%clk 0:01:15.5]}
18. Rc1 {[%clk 0:01:43]} 18... Rac8 {[%clk 0:01:15.7]} 19. Qg4 {[%clk
0:01:42.3]} 19... Qd3 {[%clk 0:00:36.6]} 20. Rcd1 {[%clk 0:00:46.4]} 20... Qg6
{[%clk 0:00:31.6]} 21. Qxg6 {[%clk 0:00:31.2]} 21... hxg6 {[%clk 0:00:33.5]} 22.
Rc1 {[%clk 0:00:21.5]} 22... Bc5 {[%clk 0:00:29.9]} 23. Bc3 {[%clk 0:00:22]}
23... Rcd8 {[%clk 0:00:29.6]} 24. Red1 {[%clk 0:00:22.5]} 24... f6 {[%clk
0:00:26.3]} 25. Bb4 {[%clk 0:00:21.3]} 25... Bf8 {[%clk 0:00:19.9]} 26. Rc7
{[%clk 0:00:20.1]} 26... Ba8 {[%clk 0:00:21.1]} 27. Rxa7 {[%clk 0:00:20.2]}
27... Bxb4 {[%clk 0:00:21.6]} 28. axb4 {[%clk 0:00:19.4]} 28... d4 {[%clk
0:00:22.8]} 29. Bxa8 {[%clk 0:00:15]} 29... dxe3 {[%clk 0:00:22.1]} 30. Rxd8
{[%clk 0:00:13.3]} 30... Rxd8 {[%clk 0:00:23.2]} 31. fxe3 {[%clk 0:00:14.2]}
31... Rd1+ {[%clk 0:00:23]} 32. Kg2 {[%clk 0:00:14.8]} 32... Rd2+ {[%clk
0:00:24.3]} 33. Kh3 {[%clk 0:00:14.4]} 33... Rxb2 {[%clk 0:00:25.3]} 34. Bd5+
{[%clk 0:00:11.9]} 34... Kh7 {[%clk 0:00:25.6]} 35. Ra8 {[%clk 0:00:07.1]} 35...
Rxb4 {[%clk 0:00:25.5]} 36. Bg8+ {[%clk 0:00:08.5]} 36... Kh6 {[%clk 0:00:26.5]}
37. Bd5 {[%clk 0:00:10.4]} 37... Kg5 {[%clk 0:00:22.5]} 38. Rb8 {[%clk
0:00:08.3]} 38... Rb2 {[%clk 0:00:22.5]} 39. Bg2 {[%clk 0:00:06.4]} 39... f5
{[%clk 0:00:22.9]} 40. Rd8 {[%clk 0:00:06.9]} 40... Kf6 {[%clk 0:00:22.4]} 41.
Rd5 {[%clk 0:00:07.1]} 41... g5 {[%clk 0:00:23]} 42. g4 {[%clk 0:00:04.1]} 42...
fxg4+ {[%clk 0:00:23.6]} 43. Kg3 {[%clk 0:00:05.2]} 43... Re2 {[%clk 0:00:23.7]}
44. Rd6+ {[%clk 0:00:05.2]} 44... Ke5 {[%clk 0:00:24.6]} 45. Rd5+ {[%clk
0:00:06.1]} 45... Ke6 {[%clk 0:00:25.1]} 46. e4 {[%clk 0:00:05.3]} 46... Kf6
{[%clk 0:00:19.8]} 47. Rb5 {[%clk 0:00:06.1]} 47... Kg6 {[%clk 0:00:18.3]} 48.
Rxb6+ {[%clk 0:00:04.9]} 48... Kh5 {[%clk 0:00:19.6]} 49. Rb8 {[%clk 0:00:06.4]}
49... Re3+ {[%clk 0:00:20.6]} 50. Kf2 {[%clk 0:00:07.5]} 50... Rc3 {[%clk
0:00:21.4]} 51. Rh8+ {[%clk 0:00:08.4]} 51... Kg6 {[%clk 0:00:22.6]} 52. Rd8
{[%clk 0:00:09.6]} 52... Kf6 {[%clk 0:00:23.3]} 53. Rd2 {[%clk 0:00:09.6]} 53...
Ke5 {[%clk 0:00:23.7]} 54. Rd5+ {[%clk 0:00:11]} 54... Kf6 {[%clk 0:00:23.6]}
55. Rd6+ {[%clk 0:00:09.3]} 55... Kf7 {[%clk 0:00:21.5]} 56. e5 {[%clk
0:00:09.3]} 56... Rc2+ {[%clk 0:00:19.6]} 57. Kg3 {[%clk 0:00:10.1]} 57... Ke7
{[%clk 0:00:20.4]} 58. Bd5 {[%clk 0:00:08.7]} 58... Re2 {[%clk 0:00:21.2]} 59.
Re6+ {[%clk 0:00:08.5]} 59... Kd7 {[%clk 0:00:22.5]} 60. Rg6 {[%clk 0:00:05.4]}
60... Rxe5 {[%clk 0:00:22.5]} 61. Rxg7+ {[%clk 0:00:06.4]} 61... Kd6 {[%clk
0:00:23.8]} 62. Bg2 {[%clk 0:00:07.2]} 62... Ke6 {[%clk 0:00:24.8]} 63. Kxg4
{[%clk 0:00:07.5]} 63... Kf6 {[%clk 0:00:25.2]} 64. Rc7 {[%clk 0:00:07.8]} 64...
Rb5 {[%clk 0:00:26.2]} 65. Rc6+ {[%clk 0:00:07.7]} 65... Kg7 {[%clk 0:00:27]}
66. Be4 {[%clk 0:00:08.6]} 66... Re5 {[%clk 0:00:25.2]} 67. Bf5 {[%clk
0:00:08.2]} 67... Re2 {[%clk 0:00:25.9]} 68. h3 {[%clk 0:00:05.3]} 68... Rg2+
{[%clk 0:00:25.5]} 69. Kh5 {[%clk 0:00:06.4]} 69... Rg3 {[%clk 0:00:25]} 70. Bg4
{[%clk 0:00:06.8]} 1-0